bitfinex-derivatives/quotes_SOLF0:USTF0_20250311
["timestamp","ask_amount","ask_price","bid_price","bid_amount"]
[1741698917485,4.73784925,121.48,121.41,3.7193]
[1741698917789,8.2347,121.46,121.41,3.7193]
[1741698918092,16.87641565,121.49,121.41,3.7193]
[1741698918294,8.2345,121.47,121.43,8.2366]
[1741698918594,0.05708329,121.46,121.44,0.06220965]
[1741698919692,8.29208329,121.46,121.44,0.06220965]
[1741698919882,0.05708329,121.46,121.44,0.06220965]
[1741698920692,0.05708329,121.46,121.44,8.29780965]
[1741698921187,0.05708329,121.46,121.44,0.06220965]
[1741698923487,0.05708329,121.46,121.45,8.2353]
[1741698924194,0.05708329,121.46,121.44,8.29790965]
[1741698924693,0.05708329,121.46,121.44,8.29770965]
[1741698925198,0.05708329,121.46,121.44,0.06220965]
[1741698925497,39.14,121.52,121.44,0.06220965]
[1741698925701,8.2322,121.5,121.42,39.22]
[1741698925995,8.2322,121.5,121.47,8.2336]
[1741698925996,4.73345083,121.49,121.47,8.2336]
[1741698926191,4.73345083,121.49,121.42,39.22]
[1741698926497,12.96615083,121.49,121.46,8.2341]
[1741698926699,0.05394567,121.47,121.44,0.06250643]
[1741698927095,18.47461156,121.55,121.44,0.06250643]
[1741698927301,4.73344967,121.54,121.45,16.87641565]
[1741698927489,12.96364967,121.53,121.46,42.6211]
[1741698927693,8.2302,121.53,121.5,8.2316]
[1741698927889,8.2302,121.53,121.47,3.6522]
[1741698928095,8.2302,121.53,121.51,8.2309]
[1741698928395,8.2293,121.54,121.49,0.05640793]
[1741698928597,0.05561153,121.53,121.49,0.05640793]
[1741698928798,0.05561153,121.53,121.51,8.2308]
[1741698929496,242.99426028,121.59,121.5,38.84]
[1741698929702,4.73665819,121.58,121.5,38.84]
[1741698929902,4.73665819,121.57,121.5,38.84]
[1741698930103,242.99426028,121.59,121.5,38.84]
[1741698930291,4.7363082,121.58,121.5,38.84]
[1741698930497,4.7363082,121.57,121.5,38.84]
[1741698930807,0.05370925,121.55,121.54,8.2291]
[1741698930996,0.05370925,121.55,121.53,0.05505696]
[1741698932398,8.28220925,121.55,121.53,0.05505696]
[1741698932603,0.05370925,121.55,121.53,0.05505696]
[1741698932796,4.73243191,121.6,121.53,0.05505696]
[1741698932992,714.06114094,121.66,121.53,0.05505696]
[1741698932993,16.87641565,121.65,121.54,38.78]
[1741698933193,43.51300656,121.64,121.54,38.78]
[1741698933403,4.73300656,121.63,121.57,8.2268]
[1741698933601,8.2248,121.61,121.57,8.2268]
[1741698934096,8.28595486,121.6,121.58,0.05442509]
[1741698934292,0.06065486,121.6,121.58,0.05442509]
[1741698934898,0.06065486,121.6,121.59,8.2258]
[1741698935095,712.62939569,121.66,121.58,38.79442509]
[1741698935096,247.00939569,121.66,121.58,38.79442509]
[1741698935397,4.72745119,121.65,121.59,2.8522]
[1741698935597,16.87641565,121.67,121.59,2.8522]
[1741698935897,4.72378523,121.66,121.59,2.8522]
[1741698936094,16.87641565,121.65,121.59,2.8522]
[1741698936293,16.87641565,121.65,121.61,0.05196032]
[1741698936294,4.78092393,121.64,121.61,0.05196032]
[1741698936495,8.2238,121.62,121.61,0.05196032]
[1741698937905,8.2234,121.63,121.61,0.05196032]
[1741698938505,0.06138266,121.64,121.61,0.05196032]
[1741698940308,69.50923784,121.72,121.61,2.98356032]
[1741698940609,69.50923784,121.72,121.61,28.03241565]
[1741698940610,55.43641565,121.71,121.61,28.03241565]
[1741698940809,8.2207,121.67,121.61,28.03241565]
[1741698941108,16.87641565,121.71,121.61,19.80801565]
[1741698941810,8.2211,121.66,121.65,0.05708625]
[1741698942108,0.05332527,121.67,121.65,0.05708625]
[1741698942707,8.2211,121.66,121.65,0.05708625]
[1741698943208,0.05332527,121.67,121.65,0.05708625]
[1741698943415,203.92641776,121.73,121.65,0.05708625]
[1741698943814,8.2207,121.67,121.64,38.52]
[1741698944613,8.2207,121.67,121.64,38.57252927]
[1741698944916,203.92641776,121.73,121.64,38.57252927]
[1741698945111,203.92641776,121.73,121.64,38.52]
[1741698945312,8.2205,121.67,121.64,38.52]
[1741698945614,203.92641776,121.73,121.67,0.06178898]
[1741698945813,203.92641776,121.73,121.65,2.8479]
[1741698946012,220.80283341,121.73,121.69,0.06263449]
[1741698946411,8.2184,121.7,121.69,0.06263449]
[1741698949109,8.2184,121.7,121.69,3.449e-05]
[1741698949906,220.80283341,121.73,121.61,2.9316]
[1741698950112,16.87641565,121.69,121.61,2.9316]
[1741698950316,38.48,121.7,121.61,2.9316]
[1741698950317,10.5132874,121.68,121.61,2.9316]
[1741698951113,0.0547565,121.66,121.63,0.05688826]
[1741698951517,0.0547565,121.66,121.63,10.57017566]
[1741698951719,0.0547565,121.66,121.64,5.7102]
[1741698952212,38.36,121.72,121.65,10.5132874]
[1741698952609,8.2191,121.69,121.65,18.7346874]
[1741698953012,8.2191,121.69,121.66,38.34]
[1741698953222,0.02544833,121.68,121.66,38.39234981]
[1741698953414,0.02544833,121.68,121.67,3.0342]
[1741698954122,8.24514833,121.68,121.67,3.0342]
[1741698954720,0.02544833,121.68,121.67,3.0342]
[1741698955218,8.24514833,121.68,121.67,3.0342]
[1741698955716,8.2204,121.67,121.66,0.05234981]
[1741698955914,0.02544833,121.68,121.66,0.05234981]
[1741698956817,0.02544833,121.68,121.67,38.24]
[1741698957017,8.2193,121.69,121.67,38.24]
[1741698958019,8.2193,121.69,121.67,38.2969258]
[1741698958423,8.2197,121.68,121.67,38.2969258]
[1741698959210,10.5132874,121.74,121.67,38.2969258]
[1741698959721,10.5132874,121.72,121.67,38.2969258]
[1741698959921,10.5132874,121.72,121.67,38.24]
[1741698960121,10.5132874,121.72,121.68,0.05436289]
[1741698960314,8.219,121.7,121.68,0.05436289]
[1741698961321,10.5132874,121.72,121.68,0.05436289]
[1741698961822,8.219,121.69,121.68,0.05436289]
[1741698962018,10.5132874,121.72,121.68,0.05436289]
[1741698962722,8.219,121.7,121.68,0.05436289]
[1741698963116,10.5132874,121.72,121.68,0.05436289]
[1741698963422,8.219,121.69,121.68,0.05436289]
[1741698964422,8.219,121.69,121.68,6.289e-05]
[1741698964812,12.9732874,121.69,121.61,2.9242]
[1741698965014,12.9732874,121.69,121.58,5.9218]
[1741698965015,10.5132874,121.63,121.58,5.9218]
[1741698965321,48.5932874,121.65,121.61,8.2243]
[1741698965517,8.2228,121.64,121.61,8.2243]
[1741698965825,10.5132874,121.63,121.58,5.9218]
[1741698966022,10.5132874,121.63,121.56,38.06]
[1741698966217,10.5132874,121.63,121.54,274.0877]
[1741698966528,8.2248,121.61,121.57,8.2271]
[1741698966728,10.5132874,121.63,121.54,274.0877]
[1741698966922,8.227,121.58,121.54,282.3166]
[1741698967121,10.5132874,121.61,121.54,312.3077]
[1741698967325,0.05553234,121.57,121.55,0.0531173]
[1741698967526,0.05553234,121.57,121.56,8.2278]
[1741698967721,38.08,121.65,121.55,10.5132874]
[1741698967928,8.2206,121.67,121.62,8.2234]
[1741698968225,10.5132874,121.7,121.6,48.7532874]
[1741698968425,10.5132874,121.7,121.63,0.05531839]
[1741698968629,51.18275483,121.68,121.63,8.27811839]
[1741698968829,42.96295483,121.68,121.63,0.05531839]
[1741698969029,42.96295483,121.68,121.65,8.2216]
[1741698969232,42.96295483,121.68,121.65,38.34]
[1741698969536,43.00727831,121.68,121.65,38.34]
[1741698969829,43.00727831,121.68,121.65,48.8532874]
[1741698970130,43.00727831,121.68,121.67,8.2204]
[1741698971429,0.04432348,121.68,121.67,8.2204]
[1741698972524,0.04432348,121.68,121.66,0.06315618]
[1741698974331,0.04432348,121.68,121.67,8.2204]
[1741698974526,0.04432348,121.68,121.66,0.06315618]
[1741698974722,0.04432348,121.68,121.67,8.2204]
[1741698975421,4.72028393,121.71,121.66,0.06315618]
[1741698975635,55.12623071,121.76,121.64,38.38]
[1741698975935,4.7245172,121.75,121.68,8.2192]
[1741698976137,56.76880626,121.76,121.65,16.80623071]
[1741698976138,4.7245172,121.74,121.65,16.80623071]
[1741698976329,8.2175,121.72,121.65,16.80623071]
[1741698976524,8.2175,121.72,121.68,8.2191]
[1741698977033,8.2177,121.71,121.68,8.2191]
[1741698977426,16.80623071,121.74,121.68,0.05693604]
[1741698977629,4.73073444,121.73,121.67,8.22]
[1741698977831,4.73073444,121.72,121.7,0.05682175]
[1741698978031,4.73073444,121.71,121.69,8.219]
[1741698978231,16.80623071,121.74,121.7,0.06013484]
[1741698978435,4.73344317,121.73,121.7,0.06013484]
[1741698978635,4.73344317,121.72,121.7,0.06013484]
[1741698978829,56.72880626,121.76,121.71,8.2177]
[1741698979031,8.216,121.74,121.7,0.06013484]
[1741698979237,4.73428715,121.73,121.72,8.2169]
[1741698980236,1.64257555,121.76,121.71,0.05297076]
[1741698980537,4.7398545,121.75,121.72,38.18]
[1741698980741,1.64257555,121.76,121.72,41.1662]
[1741698980941,4.74109047,121.75,121.72,41.1662]
[1741698981134,1.64257555,121.76,121.72,41.1662]
[1741698981340,4.74213588,121.75,121.72,49.3829]
[1741698981540,1.64257555,121.76,121.72,49.3829]
[1741698981739,4.74188904,121.75,121.72,49.3829]
[1741698982042,1.64257555,121.76,121.72,49.3829]
[1741698982043,4.73965254,121.74,121.72,38.18]
[1741698982234,1.64257555,121.76,121.72,38.18]
[1741698982433,4.74116291,121.75,121.72,38.18]
[1741698982636,4.74116291,121.74,121.72,38.18]
[1741698982837,1.64257555,121.76,121.72,38.18]
[1741698983036,4.74059973,121.75,121.72,38.18]
[1741698983241,4.74059973,121.74,121.72,38.18]
[1741698983444,4.74103705,121.73,121.72,38.18]
[1741698984038,12.95733705,121.73,121.72,38.18]
[1741698984345,4.74103705,121.73,121.72,38.18]
[1741698984546,9.85697555,121.76,121.72,38.18]
[1741698984842,4.74516709,121.75,121.72,38.18]
[1741698985048,1.64257555,121.76,121.74,8.2151]
[1741698985246,42.96295483,121.81,121.73,16.80623071]
[1741698985443,42.96295483,121.81,121.74,2.94564054]
[1741698985651,42.96295483,121.81,121.75,2.8915]
[1741698985853,128.12479906,121.83,121.76,37.96]
[1741698986150,213.54133177,121.84,121.77,0.06149725]
[1741698986650,8.2106,121.82,121.77,0.06149725]
[1741698986840,213.54133177,121.84,121.77,0.06149725]
[1741698987051,213.54133177,121.84,121.77,16.86772796]
[1741698987244,114.87085575,121.84,121.83,8.2096]
[1741698987442,114.87085575,121.84,121.83,37.9]
[1741698987643,114.87085575,121.84,121.78,1.4736152]
[1741698987644,114.87085575,121.84,121.82,0.05272437]
[1741698987848,114.87085575,121.84,121.78,37.94]
[1741698988048,114.87085575,121.84,121.82,0.05766618]
[1741698988348,8.2096,121.83,121.82,0.05766618]
[1741698988543,5.6962,121.84,121.82,0.05766618]
[1741698989545,2.8132,121.84,121.82,0.05766618]
[1741698989746,2.8132,121.87,121.82,0.05766618]
[1741698989946,11.0201,121.87,121.82,8.26736618]
[1741698990248,2.8132,121.87,121.82,0.05766618]
[1741698990655,2.8132,121.87,121.82,38.01766618]
[1741698992049,5.89,121.88,121.82,38.01766618]
[1741698992256,2.919,121.9,121.86,8.2074]
[1741698992555,2.919,121.9,121.82,37.96]
[1741698992748,2.919,121.9,121.87,0.05881926]
[1741698993656,5.8491,121.93,121.87,0.05881926]
[1741698993855,8.2043,121.91,121.87,8.26531926]
[1741698994152,8.2043,121.91,121.87,0.05881926]
[1741698994343,5.8491,121.93,121.87,0.05881926]
[1741698994344,8.2038,121.92,121.87,0.05881926]
[1741698994549,5.8491,121.93,121.87,0.05881926]
[1741698995056,5.8491,121.93,121.87,8.26531926]
[1741698995057,8.2043,121.91,121.87,8.26531926]
[1741698995252,5.8491,121.93,121.87,8.26531926]
[1741698995253,5.8491,121.93,121.87,0.05881926]
[1741698995555,8.2057,121.89,121.87,0.05881926]
[1741698995760,7.4893854,121.93,121.87,0.05881926]
[1741698995951,18.44665065,121.92,121.87,0.05881926]
[1741698996256,1.64041994,121.92,121.87,0.05881926]
[1741698997052,1.64041994,121.92,121.91,8.2042]
[1741698997255,5.9995,121.99,121.91,45.9042]
[1741698997455,8.202,121.95,121.91,45.9042]
[1741698997656,7.63897864,121.99,121.91,45.9042]
[1741698997853,7.63897864,121.99,121.92,8.25570805]
[1741698998046,7.63897864,121.99,121.92,0.05230805]
[1741698998456,4.52107864,121.99,121.93,16.80623071]
[1741698998758,1.63947864,121.99,121.93,16.80623071]
[1741698999058,1.63947864,121.99,121.95,0.06196469]
[1741698999261,39.35947864,121.99,121.95,0.06196469]
[1741698999754,8.2,121.98,121.95,0.06196469]
[1741698999959,1.63947864,121.99,121.95,0.06196469]
[1741699000656,1.63947864,121.99,121.95,8.26306469]
[1741699000859,1.63947864,121.99,121.95,0.06196469]
[1741699001161,8.2005,121.97,121.95,0.06196469]
[1741699001456,1.63947864,121.99,121.95,0.06196469]
[1741699002059,1.63947864,121.99,121.95,38.18196469]
[1741699003359,8.2,121.98,121.95,38.18196469]
[1741699003560,1.63947864,121.99,121.95,38.18196469]
[1741699003762,8.2001,121.98,121.95,38.18196469]
[1741699004059,1.63947864,121.99,121.95,38.18196469]
[1741699004261,8.2006,121.97,121.95,38.18196469]
[1741699004463,1.63947864,121.99,121.95,38.18196469]
[1741699004862,8.1996,121.98,121.95,38.18196469]
[1741699005069,1.63947864,121.99,121.95,38.18196469]
[1741699005363,8.1998,121.98,121.95,38.18196469]
[1741699005764,1.63947864,121.99,121.95,38.18196469]
[1741699005963,9.83867864,121.99,121.96,8.2005]
[1741699006163,1.63947864,121.99,121.95,38.18196469]
[1741699006565,8.2008,121.97,121.95,38.18196469]
[1741699006758,1.63947864,121.99,121.95,38.18196469]
[1741699007162,9.83867864,121.99,121.96,8.2007]
[1741699007364,1.63947864,121.99,121.95,38.18196469]
[1741699008065,8.1995,121.98,121.95,46.38306469]
[1741699008265,1.63947864,121.99,121.95,38.18196469]
[1741699009362,9.83857864,121.99,121.95,38.18196469]
[1741699009867,9.83857864,121.99,121.96,8.2005]
[1741699010268,1.63947864,121.99,121.96,8.2005]
[1741699010566,1.63947864,121.99,121.98,8.1995]
[1741699010765,2.29428992,122.12,121.98,16.80623071]
[1741699011065,25.72733071,122.1,122.01,8.1973]
[1741699011262,8.9211,122.1,122.03,0.06221849]
[1741699012169,16.80623071,122.09,122.03,0.06221849]
[1741699012356,8.1955,122.04,122.03,0.06221849]
[1741699012563,16.80623071,122.05,121.97,8.1997]
[1741699012766,3.0366,122.04,121.95,37.92]
[1741699012963,8.1998,121.98,121.94,5.9959]
[1741699013168,16.80623071,122.01,121.91,37.9]
[1741699013368,16.80623071,121.99,121.91,37.9]
[1741699013560,8.2016,121.95,121.91,37.9]
[1741699013768,8.2016,121.95,121.94,0.05814905]
[1741699014166,0.05990877,121.96,121.94,0.05814905]
[1741699015773,0.05990877,121.96,121.95,8.2015]
[1741699016166,0.05990877,121.96,121.95,46.0415]
[1741699016366,54.62623071,122.05,121.95,37.84]
[1741699016568,16.80623071,122.03,121.95,37.84]
[1741699016770,16.80623071,121.99,121.91,37.8]
[1741699016964,16.80623071,121.97,121.88,2.8235]
[1741699017169,3.0312,121.96,121.88,40.6835]
[1741699017372,37.84,121.95,121.92,0.05165388]
[1741699017666,54.64623071,121.95,121.85,43.4889]
[1741699018571,8.2039,121.92,121.89,0.06102596]
[1741699018771,0.05220986,121.91,121.89,0.06102596]
[1741699019171,0.05220986,121.91,121.9,8.2049]
[1741699019368,45.41061305,121.98,121.9,37.8]
[1741699020374,8.2019,121.95,121.91,8.2039]
[1741699020669,45.41061305,121.98,121.93,0.05318754]
[1741699021974,1.63961305,121.98,121.93,0.05318754]
[1741699023166,16.80623071,121.97,121.93,0.05318754]
[1741699023365,40.7132,121.96,121.93,0.05318754]
[1741699023574,43.6545,121.96,121.93,0.05318754]
[1741699023768,2.8473,121.95,121.93,0.05318754]
[1741699024376,2.8473,121.95,121.88,37.76]
[1741699024576,8.2029,121.93,121.89,8.2052]
[1741699024777,2.8473,121.95,121.88,37.76]
[1741699025372,0.05318754,121.93,121.9,0.0596817]
[1741699025578,0.05318754,121.93,121.92,8.2035]
[1741699025977,0.05318754,121.93,121.9,0.0596817]
[1741699026278,0.05318754,121.93,121.9,16.86591241]
[1741699026470,1.63961305,121.98,121.92,16.80623071]
[1741699026675,1.524763,121.98,121.97,8.2002]
[1741699026977,10.84941516,122.03,121.97,37.84]
[1741699027669,10.84941516,122.03,121.99,0.06298441]
[1741699027872,10.84941516,122.03,122.0,8.1976]
[1741699028079,10.84941516,122.03,121.99,0.06298441]
[1741699028280,8.1976,122.01,121.99,0.06298441]
[1741699028478,48.58941516,122.03,121.99,0.06298441]
[1741699029178,10.84941516,122.03,121.99,0.06298441]
[1741699029377,8.1972,122.02,121.99,0.06298441]
[1741699029570,10.84941516,122.03,121.99,0.06298441]
[1741699029974,8.1981,122.0,121.99,0.06298441]
[1741699031079,37.6,122.02,121.93,3.0264]
[1741699031281,4.67538716,122.01,121.93,40.6264]
[1741699031473,37.6,122.02,121.93,40.6264]
[1741699031676,4.67640512,122.01,121.94,19.91403071]
[1741699031875,57.43633071,122.05,121.94,19.91403071]
[1741699032075,16.80623071,122.03,121.93,48.8292]
[1741699032276,8.2009,121.96,121.93,40.6264]
[1741699032582,37.56,122.0,121.93,40.6264]
[1741699032778,0.05700589,121.96,121.9,3.0429]
[1741699032978,4.67757814,121.95,121.87,2.9116]
[1741699033181,37.56,121.96,121.92,0.0540908]
[1741699033474,4.67917023,121.95,121.92,0.0540908]
[1741699033672,0.05986222,121.95,121.92,0.0540908]
[1741699035078,8.2026,121.94,121.92,0.0540908]
[1741699035478,0.05986222,121.95,121.92,0.0540908]
[1741699037679,8.2029,121.93,121.92,0.0540908]
[1741699037884,4.69045732,121.93,121.87,2.9116]
[1741699038084,4.69045732,121.92,121.87,2.9116]
[1741699038385,3.0309,121.94,121.87,2.9116]
[1741699038577,4.68751125,121.93,121.88,16.80623071]
[1741699038777,3.0309,121.98,121.89,37.62]
[1741699038975,4.68803214,121.97,121.89,37.62]
[1741699039182,0.05811344,121.92,121.89,37.62]
[1741699039389,4.68803214,121.95,121.92,8.2031]
[1741699039576,3.0309,121.98,121.92,8.2031]
[1741699039776,0.0518812,121.95,121.89,37.62]
[1741699039978,0.0518812,121.95,121.94,0.06269984]
[1741699040182,4.7412674,121.95,121.89,45.8252]
[1741699040484,4.6893862,121.94,121.91,0.0566008]
[1741699040683,4.6893862,121.93,121.91,0.0566008]
[1741699040883,8.2035,121.92,121.91,0.0566008]
[1741699041087,12.89479883,121.92,121.91,0.0566008]
[1741699041386,8.2045,121.91,121.87,2.9116]
[1741699041593,37.86,121.95,121.88,8.2057]
[1741699041792,37.86,121.95,121.87,2.9116]
[1741699041793,4.69040382,121.94,121.87,2.9116]
[1741699042091,4.69040382,121.93,121.87,2.9116]
[1741699042288,37.74,121.95,121.87,2.9116]
[1741699042589,0.06246567,121.91,121.9,8.2045]
[1741699042793,60.54753071,121.98,121.9,37.76]
[1741699043087,16.80623071,121.96,121.89,0.05335066]
[1741699043291,4.7432786,121.95,121.91,0.05868445]
[1741699043589,8.2035,121.92,121.91,0.05868445]
[1741699043885,4.68924411,121.92,121.87,40.6716]
[1741699044186,4.6870983,121.91,121.8,287.44623071]
[1741699044381,4.6870983,121.91,121.75,90.84730378]
[1741699044382,16.80623071,121.88,121.75,90.84730378]
[1741699044579,11.2008,121.87,121.77,54.60623071]
[1741699044787,11.2008,121.87,121.81,8.2104]
[1741699044982,0.05487189,121.83,121.81,8.26860606]
[1741699045287,0.05487189,121.83,121.82,8.2103]
[1741699045687,0.05487189,121.83,121.81,0.05820606]
[1741699045889,0.05487189,121.83,121.82,8.2103]
[1741699046084,37.8,121.9,121.82,37.78]
[1741699046289,46.0053,121.9,121.82,37.78]
[1741699046592,37.8,121.9,121.82,40.8427]
[1741699046783,11.0278,121.92,121.83,19.79483071]
[1741699046989,1.6405545,121.91,121.83,19.79483071]
[1741699047389,0.06029421,121.88,121.86,0.05488009]
[1741699048789,0.06029421,121.88,121.87,8.2069]
[1741699048987,0.06029421,121.88,121.86,0.05488009]
[1741699049184,1.6405545,121.91,121.87,38.0]
[1741699049587,1.6405545,121.91,121.88,2.9029]
[1741699049786,1.6405545,121.91,121.9,8.2049]
[1741699050191,1.6405545,121.91,121.88,2.9029]
[1741699050589,1.6405545,121.91,121.89,0.05361151]
[1741699051095,1.6405545,121.91,121.89,8.25901151]
[1741699051394,1.6405545,121.91,121.89,0.05361151]
[1741699052484,1.6405545,121.91,121.89,8.25901151]
[1741699052689,1.6405545,121.91,121.89,0.05361151]
[1741699053291,1.6405545,121.91,121.9,8.2049]
[1741699053498,1.6405545,121.91,121.89,0.05361151]
[1741699053791,1.6405545,121.91,121.89,8.25881151]
[1741699053992,1.6405545,121.91,121.89,0.05361151]
[1741699054292,0.06022633,121.92,121.9,54.78623071]
[1741699054493,3.0267,122.01,121.9,54.78623071]
[1741699054689,8.1987,122.0,121.92,16.80623071]
[1741699054889,3.0267,122.01,121.92,16.80623071]
[1741699055088,3.0267,122.01,121.9,54.78623071]
[1741699055290,4.68025002,122.0,121.92,8.2032]
[1741699055488,38.02,121.99,121.9,37.98]
[1741699055688,0.05329088,121.97,121.95,0.0585414]
[1741699056285,0.05329088,121.97,121.9,37.98]
[1741699056485,24.44117614,121.97,121.9,37.98]
[1741699056693,19.75812159,121.97,121.9,37.98]
[1741699056887,8.2036,121.92,121.9,37.98]
[1741699057095,38.08,121.94,121.85,38.08]
[1741699057291,7.60333611,121.93,121.85,38.08]
[1741699057493,41.0186,121.97,121.92,8.2034]
[1741699057685,4.68416209,121.96,121.89,38.12]
[1741699057998,8.2019,121.95,121.91,8.26254571]
[1741699058295,0.05502323,121.96,121.91,0.05874571]
[1741699059700,0.05502323,121.96,121.91,3.00674571]
[1741699059996,0.05502323,121.96,121.92,16.80623071]
[1741699060197,0.05502323,121.96,121.93,38.16]
[1741699060599,4.68920951,122.01,121.94,16.80623071]
[1741699060989,12.88710951,122.01,121.97,8.1995]
[1741699061193,8.1979,122.01,121.97,8.1995]
[1741699061402,2.8835,122.02,121.94,16.80623071]
[1741699061606,11.0807,122.02,121.94,16.80623071]
[1741699061904,0.0580764,121.99,121.97,0.05484426]
[1741699062404,0.0580764,121.99,121.98,8.1995]
[1741699064309,0.0580764,121.99,121.97,46.21464426]
[1741699065005,0.0580764,121.99,121.98,8.1995]
[1741699065408,0.0580764,121.99,121.97,38.01484426]
[1741699065708,0.0580764,121.99,121.98,8.1995]
[1741699066405,0.0580764,121.99,121.97,46.21444426]
[1741699066705,0.0580764,121.99,121.97,0.05484426]
[1741699068511,0.0580764,121.99,121.98,8.1995]
[1741699069320,0.0580764,121.99,121.97,0.05484426]
[1741699069321,3.024,122.06,121.97,0.05484426]
[1741699069505,3.024,122.06,122.01,8.1971]
[1741699069701,3.024,122.06,121.99,37.62]
[1741699070011,3.024,122.06,122.0,8.1978]
[1741699070210,8.1959,122.04,122.0,8.1978]
[1741699070408,8.1959,122.04,121.99,37.62]
[1741699070609,3.024,122.06,122.02,8.1965]
[1741699070809,8.1953,122.05,122.02,8.1965]
[1741699071012,3.024,122.06,122.01,0.05811383]
[1741699071205,8.1958,122.04,122.01,8.25511383]
[1741699071406,3.024,122.06,122.01,0.05811383]
[1741699071714,8.1988,122.0,121.96,45.7205]
[1741699072013,54.32623071,122.04,121.96,45.7205]
[1741699072313,8.1994,121.99,121.96,45.7205]
[1741699072514,16.80623071,122.02,121.94,37.52]
[1741699072810,8.1997,121.98,121.94,37.52]
[1741699073009,0.05376579,121.99,121.97,0.05513299]
[1741699073312,8.1992,121.99,121.97,0.05513299]
[1741699073702,0.056925,121.99,121.97,0.05513299]
[1741699074107,0.056925,121.99,121.98,8.1995]
[1741699074308,0.056925,121.99,121.97,0.05513299]
[1741699075517,8.256125,121.99,121.97,0.05513299]
[1741699076418,0.056925,121.99,121.97,0.05513299]
[1741699076616,8.1995,121.98,121.97,0.05513299]
[1741699077212,8.2024,121.94,121.91,40.3124]
[1741699077820,8.2024,121.94,121.91,48.5162]
[1741699078017,8.2029,121.93,121.9,2.9592]
[1741699078219,8.25454042,121.93,121.91,0.05960462]
[1741699079014,0.05164042,121.93,121.91,8.26370462]
[1741699079609,8.25454042,121.93,121.91,0.05960462]
[1741699079810,0.05164042,121.93,121.91,0.05960462]
[1741699080220,8.2035,121.92,121.91,0.05960462]
[1741699080614,8.2035,121.92,121.78,136.27095568]
[1741699080615,37.32,121.92,121.85,8.2079]
[1741699080814,40.2388,121.92,121.83,5.7873]
[1741699081014,40.2388,121.92,121.83,2.9879]
[1741699081211,43.0849,121.92,121.83,2.9879]
[1741699081820,8.2611507,121.89,121.86,0.06214667]
[1741699082023,0.0552507,121.89,121.86,0.06214667]
[1741699082315,8.2069,121.87,121.86,0.06214667]
[1741699082520,37.32,121.88,121.79,2.8189]
[1741699082716,2.9591,121.86,121.77,128.16730378]
[1741699082917,2.7875,121.85,121.77,90.84730378]
[1741699083112,37.32,121.84,121.77,90.84730378]
[1741699083313,8.2124,121.79,121.77,90.84730378]
[1741699083724,0.05815604,121.79,121.77,90.90327464]
[1741699084524,0.05815604,121.79,121.78,8.213]
[1741699084723,0.05815604,121.79,121.77,8.42997086]
[1741699084923,0.05815604,121.79,121.77,0.05597086]
[1741699085520,2.84565604,121.79,121.72,37.38]
[1741699086224,8.213,121.78,121.73,8.2159]
[1741699086519,2.84565604,121.79,121.72,37.38]
[1741699086721,0.05815604,121.79,121.72,37.38]
[1741699086923,2.7585,121.84,121.74,16.86365468]
[1741699087219,2.7585,121.84,121.74,16.80623071]
[1741699087419,0.05559636,121.8,121.78,0.05594457]
[1741699087830,0.05559636,121.8,121.72,37.38]
[1741699088024,16.80623071,121.79,121.7,5.5174]
[1741699088320,39.10230579,121.78,121.7,5.5174]
[1741699088522,8.2149,121.76,121.7,5.5174]
[1741699088728,39.10230579,121.78,121.7,5.5174]
[1741699088922,1.64230579,121.78,121.7,59.76363071]
[1741699089220,1.64230579,121.78,121.73,0.05536294]
[1741699089425,1.64230579,121.78,121.76,16.80623071]
[1741699089729,37.48,121.84,121.76,16.80623071]
[1741699090115,2.978,121.86,121.83,8.2096]
[1741699090415,2.978,121.86,121.79,37.48]
[1741699090614,8.2087,121.85,121.83,0.0522816]
[1741699090919,16.80623071,121.85,121.74,16.80623071]
[1741699091120,1.64149704,121.84,121.75,37.56]
[1741699091320,37.56,121.83,121.75,37.56]
[1741699091525,1.64149704,121.84,121.76,22.65023071]
[1741699091722,1.64149704,121.84,121.78,16.80623071]
[1741699092222,0.06261083,121.82,121.8,0.06063107]
[1741699092526,0.06261083,121.82,121.81,8.2108]
[1741699093031,1.64149704,121.84,121.83,8.2096]
[1741699093324,194.0,121.97,121.84,16.80623071]
[1741699093325,54.42623071,121.95,121.84,16.80623071]